bitfinex-derivatives/quotes_BNBF0:USTF0_20230901
["timestamp","ask_amount","ask_price","bid_price","bid_amount"]
[1693602868678,0.17204755,213.84,213.34,0.86124024]
[1693602868882,0.17204755,213.84,213.35,0.86117424]
[1693602869685,5.26241557,213.84,213.35,0.86117424]
[1693602869885,0.17204755,213.83,213.35,0.86117424]
[1693602870081,5.26241557,213.83,213.35,0.86117424]
[1693602870285,0.17204755,213.82,213.35,0.86117424]
[1693602871185,0.17204755,213.82,213.35,0.93763665]
[1693602871388,0.17204755,213.82,213.36,0.86117424]
[1693602871987,0.17204755,213.82,213.36,0.93763665]
[1693602871988,5.26241557,213.82,213.36,0.93763665]
[1693602872186,0.17204755,213.81,213.36,0.07646241]
[1693602872887,5.26241557,213.81,213.36,0.07646241]
[1693602873089,0.17204755,213.8,213.36,0.07646241]
[1693602873988,0.17204755,213.8,213.37,0.07646241]
[1693602874384,5.26241557,213.8,213.37,0.07646241]
[1693602874585,0.17204755,213.79,213.37,0.07646241]
[1693602875186,0.17204755,213.79,213.38,0.07646241]
[1693602875889,5.26241557,213.79,213.38,0.07646241]
[1693602876088,0.17204755,213.78,213.38,0.07646241]
[1693602878890,5.26241557,213.78,213.38,0.07646241]
[1693602879085,0.17204755,213.77,213.38,0.07646241]
[1693602882693,0.17204755,213.77,213.37,0.07646241]
[1693602883793,5.26241557,213.77,213.37,0.07646241]
[1693602884093,0.17204755,213.76,213.37,0.07646241]
[1693602884994,0.17204755,213.76,213.36,0.07646241]
[1693602885596,5.26241557,213.76,213.36,0.07646241]
[1693602885794,0.17204755,213.75,213.36,0.07646241]
[1693602886297,0.17204755,213.75,213.35,0.07646241]
[1693602898001,0.17204755,213.75,213.34,0.07646241]
[1693602898197,5.09036802,213.74,213.33,0.07646241]
[1693602898404,0.17204755,213.73,213.33,0.07646241]
[1693602898600,5.09036802,213.75,213.33,0.07646241]
[1693602898601,0.17204755,213.72,213.33,0.07646241]
[1693602898902,0.17204755,213.71,213.33,0.07646241]
[1693602899102,0.17204755,213.7,213.33,0.07646241]
[1693602899304,0.17204755,213.69,213.33,0.07646241]
[1693602899602,5.09036802,213.75,213.33,0.07646241]
[1693602899603,0.17204755,213.68,213.33,0.07646241]
[1693602899804,0.17204755,213.67,213.33,0.07646241]
[1693602899997,0.17204755,213.66,213.31,0.07646241]
[1693602900194,5.09036802,213.75,213.31,0.07646241]
[1693602900195,0.17204755,213.74,213.31,0.07646241]
[1693602900400,0.17204755,213.73,213.31,0.07646241]
[1693602900600,0.17204755,213.74,213.31,0.07646241]
[1693602900797,0.17204755,213.73,213.31,0.07646241]
[1693602900999,0.17204755,213.72,213.31,0.07646241]
[1693602901303,0.17204755,213.71,213.31,0.07646241]
[1693602901504,0.17204755,213.7,213.31,0.07646241]
[1693602901705,0.17204755,213.69,213.31,0.07646241]
[1693602901904,0.17204755,213.68,213.31,0.07646241]
[1693602902105,0.17204755,213.67,213.31,0.07646241]
[1693602902301,0.17204755,213.66,213.31,0.07646241]
[1693602902506,0.17204755,213.65,213.31,0.07646241]
[1693602902703,0.17204755,213.64,213.26,0.07646241]
[1693602902908,0.17204755,213.63,213.31,0.07646241]
[1693602903209,0.17204755,213.62,213.31,0.07646241]
[1693602903506,5.09036802,213.74,213.31,0.07646241]
[1693602903708,0.17226324,213.73,213.31,0.07646241]
[1693602904303,0.17226324,213.74,213.31,0.07646241]
[1693602904506,0.17226324,213.73,213.31,0.07646241]
[1693602904803,0.17226324,213.72,213.31,0.07646241]
[1693602905002,0.17226324,213.71,213.31,0.07646241]
[1693602905206,0.17226324,213.7,213.31,0.07646241]
[1693602905407,5.09036802,213.75,213.3,0.07646241]
[1693602905408,0.17226324,213.69,213.3,0.07646241]
[1693602905610,0.17226324,213.68,213.31,0.86129905]
[1693602905908,0.17226324,213.67,213.31,0.86129905]
[1693602906109,0.17226324,213.66,213.31,0.86129905]
[1693602906303,0.17226324,213.65,213.31,0.86129905]
[1693602906506,0.17226324,213.64,213.31,0.86129905]
[1693602906708,0.17226324,213.63,213.3,0.07646241]
[1693602906904,0.17226324,213.62,213.22,0.07646241]
[1693602907106,0.17226324,213.61,213.23,0.86160484]
[1693602907306,0.17226324,213.71,213.23,0.86160484]
[1693602907507,0.17226324,213.7,213.23,0.86160484]
[1693602907714,5.09036802,213.7,213.23,0.86160484]
[1693602907908,0.17226324,213.69,213.23,0.86160484]
[1693602908106,0.17226324,213.69,213.22,0.86160484]
[1693602908309,0.17226324,213.69,213.23,0.86160484]
[1693602908507,0.17226324,213.69,213.21,0.07646241]
[1693602908508,0.17226324,213.69,213.24,0.86160484]
[1693602908711,0.17226324,213.69,213.22,0.86160484]
[1693602908912,0.17226324,213.68,213.23,0.86160484]
[1693602909113,0.17226324,213.72,213.21,0.86160484]
[1693602909310,0.17226324,213.72,213.2,0.07646241]
[1693602909311,0.17226324,213.71,213.22,0.86160484]
[1693602909511,0.17226324,213.7,213.23,0.86160484]
[1693602909707,0.17226324,213.72,213.21,0.86160484]
[1693602909913,0.17226324,213.71,213.22,0.86160484]
[1693602910113,0.17226324,213.73,213.21,0.86160484]
[1693602910316,0.17226324,213.73,213.2,0.07646241]
[1693602910317,0.17226324,213.72,213.22,0.86160484]
[1693602910508,0.17226324,213.71,213.21,0.86160484]
[1693602910709,0.17226324,213.7,213.22,0.86160484]
[1693602910912,0.17226324,213.7,213.2,0.07646241]
[1693602910913,0.17226324,213.69,213.23,0.86160484]
[1693602911110,0.17226324,213.74,213.21,0.86160484]
[1693602911308,0.17226324,213.73,213.22,0.86160484]
[1693602911508,0.17226324,213.72,213.23,0.86160484]
[1693602911814,0.17226324,213.72,213.2,0.07646241]
[1693602911815,0.17226324,213.71,213.24,0.86160484]
[1693602912017,0.17226324,213.75,213.21,0.86160484]
[1693602912215,0.17226324,213.74,213.22,0.86160484]
[1693602912409,0.17226324,213.73,213.23,0.86160484]
[1693602912609,0.17226324,213.75,213.24,0.86160484]
[1693602912808,0.17226324,213.74,213.25,0.86160484]
[1693602913012,0.17226324,213.73,213.26,0.86160484]
[1693602913214,0.17226324,213.72,213.19,0.07646241]
[1693602913417,0.17226324,213.75,213.2,0.86157884]
[1693602913615,0.17226324,213.74,213.2,0.86157884]
[1693602913915,0.17226324,213.73,213.2,0.86157884]
[1693602914114,0.17226324,213.72,213.2,0.86157884]
[1693602914309,0.17226324,213.76,213.2,0.86157884]
[1693602914514,0.17226324,213.75,213.2,0.86157884]
[1693602914710,0.17226324,213.76,213.2,0.86157884]
[1693602914911,0.17226324,213.75,213.2,0.86157884]
[1693602915113,0.17226324,213.76,213.2,0.86157884]
[1693602915308,0.17226324,213.75,213.2,0.86157884]
[1693602915511,0.17226324,213.77,213.2,0.93804125]
[1693602915709,0.17226324,213.76,213.21,0.86157884]
[1693602915909,5.09036802,213.78,213.21,0.86157884]
[1693602915910,0.17226324,213.77,213.21,0.86157884]
[1693602916207,0.17226324,213.76,213.21,0.86157884]
[1693602916410,0.17226324,213.75,213.21,0.86157884]
[1693602916609,0.17226324,213.74,213.21,0.86157884]
[1693602916910,0.17226324,213.73,213.21,0.86157884]
[1693602917115,0.17226324,213.72,213.21,0.86157884]
[1693602917311,0.17226324,213.78,213.23,0.07646241]
[1693602917515,0.17226324,213.78,213.26,0.07646241]
[1693602917716,0.17226324,213.81,213.28,0.07646241]
[1693602918115,0.17226324,213.8,213.28,0.07646241]
[1693602918312,0.17226324,213.79,213.29,0.93804125]
[1693602918613,5.09036802,213.87,213.29,0.93804125]
[1693602918614,0.17226324,213.78,213.3,0.86157884]
[1693602918815,0.17226324,213.87,213.3,0.86157884]
[1693602919016,0.17226324,213.86,213.3,0.86157884]
[1693602919218,0.17226324,213.87,213.3,0.86157884]
[1693602919420,0.17226324,213.86,213.3,0.86157884]
[1693602919613,0.17226324,213.85,213.3,0.86157884]
[1693602919813,0.17226324,213.84,213.3,0.86157884]
[1693602920016,0.17226324,213.83,213.3,0.86157884]
[1693602920217,0.17226324,213.82,213.3,0.86157884]
[1693602920417,0.17226324,213.81,213.3,0.86157884]
[1693602920618,0.17226324,213.87,213.3,0.86157884]
[1693602920820,0.17226324,213.86,213.3,0.86157884]
[1693602921022,0.17226324,213.85,213.3,0.86157884]
[1693602921315,0.17226324,213.84,213.3,0.86157884]
[1693602921521,0.17226324,213.87,213.3,0.86157884]
[1693602921820,0.17226324,213.86,213.3,0.86157884]
[1693602922020,0.17226324,213.85,213.3,0.86157884]
[1693602922218,0.17226324,213.87,213.3,0.86157884]
[1693602922421,0.17226324,213.86,213.3,0.86157884]
[1693602922615,0.17226324,213.85,213.3,0.86157884]
[1693602922819,0.17226324,213.87,213.3,0.86157884]
[1693602923019,0.17226324,213.86,213.34,0.07646241]
[1693602923215,0.17226324,213.92,213.35,0.86157884]
[1693602923414,0.17226324,213.91,213.35,0.86157884]
[1693602923617,0.17226324,213.9,213.35,0.86157884]
[1693602923818,0.17226324,213.92,213.35,0.86157884]
[1693602924020,0.17226324,213.91,213.35,0.86157884]
[1693602924317,0.17226324,213.9,213.35,0.86157884]
[1693602924515,0.17226324,213.89,213.35,0.86157884]
[1693602924719,0.17226324,213.88,213.35,0.86157884]
[1693602924920,0.17226324,213.87,213.35,0.86157884]
[1693602925222,5.09036802,213.95,213.33,0.07646241]
[1693602925223,0.17226324,213.86,213.36,0.86157884]
[1693602925418,0.17226324,213.94,213.37,0.86157884]
[1693602925623,0.17226324,213.93,213.38,0.86157884]
[1693602925819,0.17226324,213.94,213.34,0.86157884]
[1693602926118,0.17226324,213.93,213.35,0.86157884]
[1693602926317,0.17226324,213.95,213.34,0.86157884]
[1693602926524,0.17226324,213.94,213.35,0.86157884]
[1693602926716,0.17226324,213.94,213.33,0.07646241]
[1693602926717,0.17226324,213.95,213.34,0.86157884]
[1693602926918,5.09036802,213.96,213.35,0.86157884]
[1693602926919,0.17226324,213.94,213.35,0.86157884]
[1693602927222,0.17226324,213.93,213.36,0.86157884]
[1693602927418,7.12651523,213.99,213.32,0.07646241]
[1693602927419,0.17226324,213.95,213.37,0.86157884]
[1693602927623,0.17226324,213.94,213.33,0.86157884]
[1693602927919,0.17226324,213.93,213.34,0.86157884]
[1693602928116,0.17226324,213.92,213.35,0.86157884]
[1693602928320,0.17226324,213.91,213.36,0.86157884]
[1693602928523,0.17226324,213.96,213.33,0.86157884]
[1693602928821,0.17226324,213.95,213.34,0.86157884]
[1693602929020,0.17226324,213.94,213.35,0.86157884]
[1693602929218,0.17226324,213.97,213.33,0.86157884]
[1693602929519,0.17226324,213.96,213.34,0.86157884]
[1693602929718,0.17226324,213.95,213.35,0.86157884]
[1693602929921,0.17226324,213.95,213.25,0.15292482]
[1693602929922,0.17226324,213.97,213.33,0.86157884]
[1693602930122,0.17226324,213.96,213.34,0.86157884]
[1693602930323,5.09036802,213.99,213.35,0.86157884]
[1693602930324,0.17226324,213.95,213.35,0.86157884]
[1693602930520,0.17226324,213.98,213.32,0.86157884]
[1693602930716,0.17226324,213.97,213.33,0.86157884]
[1693602931021,0.17226324,213.96,213.34,0.86157884]
[1693602931223,0.17226324,213.98,213.32,0.86157884]
[1693602931416,0.17226324,213.97,213.33,0.86157884]
[1693602931617,0.17226324,213.99,213.32,0.86157884]
[1693602933224,0.17226324,214.0,213.32,0.86157884]
[1693602933425,0.17226324,213.99,213.32,0.86157884]
[1693602933621,0.17226324,214.0,213.33,0.86157884]
[1693602933826,0.17226324,213.99,213.34,0.86157884]
[1693602934026,0.17226324,213.98,213.35,0.86157884]
[1693602934228,0.17226324,213.98,213.3,0.07646241]
[1693602934229,0.17226324,213.97,213.36,0.86157884]
[1693602934421,0.17226324,214.0,213.31,0.86157884]
[1693602934624,0.17226324,213.99,213.31,0.86157884]
[1693602934824,0.17226324,214.01,213.31,0.86157884]
[1693602935027,0.17226324,214.0,213.31,0.86157884]
[1693602935227,0.17226324,213.99,213.31,0.86157884]
[1693602935424,0.17226324,213.98,213.31,0.86157884]
[1693602935626,0.17226324,213.97,213.31,0.86157884]
[1693602935927,0.17226324,213.96,213.31,0.86157884]
[1693602936123,0.17226324,213.95,213.31,0.86157884]
[1693602936327,0.17226324,213.94,213.31,0.86157884]
[1693602936528,0.17226324,213.93,213.31,0.86157884]
[1693602936729,0.17226324,213.92,213.31,0.93804125]
[1693602936929,5.09036802,214.03,213.32,0.86157884]
[1693602936930,0.17226324,213.91,213.32,0.86157884]
[1693602937130,0.17226324,213.9,213.32,0.86157884]
[1693602937331,0.17226324,214.02,213.32,0.86157884]
[1693602937631,0.17226324,214.01,213.32,0.86157884]
[1693602937830,0.17226324,214.02,213.32,0.86157884]
[1693602938134,0.17226324,214.01,213.32,0.86157884]
[1693602938330,0.17226324,214.0,213.32,0.86157884]
[1693602938527,0.17226324,213.99,213.32,0.86157884]
[1693602938728,0.17226324,213.98,213.32,0.86157884]
[1693602938929,0.17226324,214.03,213.32,0.86157884]
[1693602939228,0.17226324,214.02,213.32,0.86157884]
[1693602939424,0.17226324,214.01,213.32,0.86157884]
[1693602939731,0.17226324,214.0,213.32,0.86157884]
[1693602939930,0.17226324,213.99,213.32,0.86157884]
[1693602940131,0.17226324,214.03,213.32,0.86157884]
[1693602940333,0.17226324,214.02,213.32,0.93804125]
[1693602940629,0.17226324,214.04,213.37,0.07646241]
[1693602940934,0.17226324,214.03,213.38,0.86157884]
[1693602941127,0.17226324,214.02,213.38,0.86157884]
[1693602941326,0.17226324,214.01,213.38,0.86157884]
[1693602941532,0.17226324,214.0,213.38,0.86157884]
[1693602941729,0.17226324,214.11,213.39,0.86157884]
[1693602941933,0.17226324,214.1,213.4,0.86157884]
[1693602942129,0.17226324,214.1,213.37,0.07646241]
[1693602942130,0.17226324,214.12,213.38,0.86157884]
[1693602942334,0.17226324,214.11,213.39,0.86157884]
[1693602942535,0.17226324,214.12,213.38,0.86157884]
[1693602942734,0.17226324,214.11,213.38,3.84335928]
[1693602942933,0.17226324,214.1,213.39,4.62847571]
[1693602943133,0.17226324,214.09,213.4,0.86157884]
[1693602943433,0.17226324,214.08,213.41,0.86157884]
[1693602943634,0.17226324,214.13,213.39,0.86157884]
[1693602943837,0.17226324,214.12,213.38,0.07646241]
[1693602944034,0.17226324,214.11,213.39,0.86157884]
[1693602944232,0.17226324,214.1,213.39,0.86157884]
[1693602944433,0.17226324,214.09,213.39,0.93804125]
[1693602944639,0.17226324,214.14,213.4,0.86157884]
[1693602944838,5.09036802,214.15,213.4,0.86157884]
[1693602944839,0.17226324,214.13,213.4,0.86157884]
[1693602945039,0.17226324,214.12,213.4,0.86157884]
[1693602945240,0.17226324,214.11,213.4,0.86157884]
[1693602945441,0.17226324,214.1,213.4,0.86157884]
[1693602945642,0.17226324,214.14,213.4,0.86157884]
[1693602945841,0.17226324,214.13,213.4,0.86157884]
[1693602946037,0.17226324,214.15,213.4,0.93804125]
[1693602946238,0.17226324,214.14,213.41,0.86157884]
[1693602946444,0.17226324,214.13,213.41,0.86157884]
[1693602946639,0.17226324,214.12,213.41,0.86157884]
[1693602946843,0.17226324,214.15,213.41,0.86157884]
[1693602947038,0.17226324,214.14,213.41,0.86157884]
[1693602947239,0.17226324,214.13,213.41,0.86157884]
[1693602947444,0.17226324,214.12,213.41,0.93804125]
[1693602947644,0.17226324,214.11,213.42,0.86157884]
[1693602947846,0.17226324,214.1,213.42,0.86157884]
[1693602948148,0.17226324,214.09,213.42,0.86157884]
[1693602948339,5.09036802,214.15,213.42,0.93804125]
[1693602948340,0.17226324,214.14,213.42,0.93804125]
[1693602948544,0.17226324,214.13,213.43,0.86157884]
[1693602948743,0.17226324,214.12,213.43,0.86157884]
[1693602948944,0.17226324,214.11,213.43,0.93804125]
[1693602949144,0.17226324,214.14,213.44,0.86157884]
[1693602949340,0.17226324,214.13,213.43,0.86157884]
[1693602949542,0.17226324,214.12,213.44,0.86157884]
[1693602949846,0.17226324,214.11,213.45,0.86157884]
[1693602950049,0.17226324,214.14,213.44,0.07646241]
[1693602950247,5.26263126,214.13,213.45,0.86157884]
[1693602950446,0.17226324,214.12,213.45,0.86157884]
[1693602951046,0.17226324,214.12,213.45,0.93804125]
[1693602951246,0.17226324,214.12,213.46,0.86157884]
[1693602951547,5.26263126,214.12,213.46,0.86157884]
[1693602951748,0.17226324,214.11,213.46,0.86157884]
[1693602951949,0.17226324,214.11,213.47,0.07646241]
[1693602952148,0.17226324,214.11,213.48,0.86157884]
[1693602952949,5.09036802,214.1,213.48,0.86157884]
[1693602953150,0.17226324,214.09,213.48,0.86157884]
[1693602953648,5.26263126,214.09,213.48,0.86157884]
[1693602953848,0.17226324,214.08,213.48,0.86157884]
[1693602955551,0.17226324,214.08,213.48,0.93804125]
[1693602955751,0.17226324,214.08,213.49,0.86157884]
[1693602956751,0.17226324,214.08,213.49,0.93804125]
[1693602956952,0.17226324,214.08,213.5,0.86157884]
[1693602957953,5.26263126,214.08,213.5,0.93804125]
[1693602958148,0.17226324,214.07,213.51,0.86157884]
[1693602962753,0.17226324,214.07,213.51,0.93804125]
[1693602962961,0.17226324,214.06,213.52,0.93804125]
[1693602963260,0.17226324,214.05,213.53,0.86157884]
[1693602963462,0.17226324,214.04,213.53,0.86157884]
[1693602963654,0.17226324,214.03,213.53,0.86157884]
[1693602963960,0.17226324,214.02,213.53,0.86157884]
[1693602964161,5.26263126,214.09,213.53,0.86157884]
[1693602964359,0.17226324,214.08,213.53,0.86157884]
[1693602966457,0.17226324,214.08,213.52,0.07646241]
[1693602966660,0.17226324,214.08,213.51,0.07646241]
[1693602966861,5.26263126,214.08,213.52,0.93704628]
[1693602967059,0.17226324,214.07,213.52,0.07646241]
[1693602968059,5.26263126,214.07,213.52,0.07646241]
[1693602968261,0.17226324,214.06,213.52,0.07646241]
[1693602968862,0.17226324,214.05,213.53,0.07646241]
[1693602969762,0.17226324,214.04,213.53,0.07646241]
[1693602969962,0.17226324,214.07,213.55,0.07646241]
[1693602970164,0.17226324,214.06,213.55,0.07646241]
[1693602970358,0.17226324,214.07,213.55,0.07646241]
[1693602970562,0.17226324,214.06,213.55,0.07646241]
[1693602970762,0.17226324,214.05,213.55,0.07646241]
[1693602970959,5.26263126,214.07,213.55,0.07646241]
[1693602971164,0.17226324,214.06,213.55,0.07646241]
[1693602971766,5.26263126,214.06,213.56,0.07646241]
[1693602971968,0.17226324,214.05,213.56,0.07646241]
[1693602972360,0.17226324,214.06,213.56,0.07646241]
[1693602972566,0.17226324,214.05,213.56,0.07646241]
[1693602972762,0.17226324,214.04,213.56,0.07646241]
[1693602972967,0.17226324,214.03,213.57,0.07646241]
[1693602973167,0.17226324,214.02,213.57,0.07646241]
[1693602973372,0.17226324,214.02,213.62,0.07646241]
[1693602973671,0.17226324,214.01,213.64,0.07646241]
[1693602973969,0.17226324,214.0,213.64,0.07646241]
[1693602974165,0.17226324,214.12,213.64,0.07646241]
[1693602974363,0.17226324,214.11,213.63,0.07646241]
[1693602974564,0.17226324,214.11,213.49,0.5097494]
[1693602974565,0.17226324,214.11,213.64,0.07646241]
[1693602974766,0.17226324,214.1,213.64,0.07646241]
[1693602974964,0.17226324,214.09,213.64,0.07646241]
[1693602975167,0.17226324,214.08,213.64,0.07646241]
[1693602975367,0.17226324,214.11,213.64,0.07646241]
[1693602975565,0.17226324,214.1,213.64,0.07646241]
[1693602975869,0.17226324,214.09,213.63,0.07646241]
[1693602976071,0.17226324,214.11,213.63,0.07646241]
[1693602976271,0.17226324,214.1,213.62,0.07646241]
[1693602976472,0.17226324,214.09,213.62,0.07646241]
[1693602976770,0.17226324,214.08,213.62,0.07646241]
[1693602976965,0.17226324,214.13,213.61,0.07646241]
[1693602977171,0.17226324,214.12,213.61,0.07646241]
[1693602977470,0.17226324,214.11,213.6,0.07646241]
[1693602977671,0.17226324,214.13,213.61,0.86023751]
[1693602977865,0.17226324,214.12,213.61,0.86023751]
[1693602978063,0.17226324,214.13,213.61,0.86023751]
[1693602978263,0.17226324,214.12,213.61,0.86023751]
[1693602978470,0.17226324,214.11,213.61,0.86023751]
[1693602978670,0.17226324,214.1,213.59,0.07646241]
[1693602978871,0.17226324,214.13,213.6,0.86024938]
[1693602979071,0.17226324,214.12,213.6,0.86024938]
[1693602979271,0.17226324,214.11,213.6,0.86024938]
[1693602979465,0.17226324,214.14,213.6,0.86024938]
[1693602979667,0.17226324,214.13,213.6,0.86024938]
[1693602979866,0.17226324,214.15,213.6,0.86024938]
[1693602980071,0.17226324,214.14,213.59,0.86024938]
[1693602980271,0.17226324,214.15,213.6,0.86024938]
[1693602980471,7.12651523,214.19,213.59,0.86024938]
[1693602980472,0.17226324,214.14,213.59,0.86024938]
[1693602980667,0.17226324,214.16,213.6,0.86024938]
[1693602980863,0.17226324,214.16,213.61,0.86024938]
[1693602981069,0.17226324,214.16,213.58,0.07646241]
[1693602981268,0.17226324,214.16,213.59,0.86024044]
[1693602981671,0.17226324,214.16,213.58,0.93670285]
[1693602981874,0.17226324,214.16,213.59,0.86024044]
[1693602982469,0.17226324,214.16,213.58,0.86024044]
[1693602982670,0.17226324,214.16,213.59,0.86024044]
[1693602982869,0.17226324,214.17,213.58,0.86024044]
[1693602983974,0.17226324,214.17,213.57,0.86024044]
[1693602985374,0.17226324,214.18,213.57,0.93670285]
[1693602985573,0.17226324,214.17,213.58,0.86024044]
[1693602985874,0.17226324,214.16,213.58,0.86024044]
[1693602986067,0.17226324,214.15,213.58,0.86024044]
[1693602986271,0.17226324,214.19,213.58,0.86024044]
[1693602986469,0.17226324,214.18,213.58,0.93670285]
[1693602986675,0.17226324,214.2,213.59,0.86024044]
[1693602986871,0.17226324,214.19,213.59,0.86024044]
[1693602987068,0.17226324,214.2,213.59,0.86024044]
[1693602987269,0.17226324,214.19,213.59,0.86024044]
[1693602987473,0.17226324,214.18,213.59,0.86024044]
[1693602987774,0.17226324,214.17,213.59,0.86024044]
[1693602988074,0.17226324,214.16,213.59,0.86024044]
[1693602988272,0.17226324,214.15,213.6,0.86024044]
[1693602988575,0.17226324,214.14,213.61,0.86024044]
[1693602988872,0.17226324,214.13,213.62,0.86024044]
[1693602989077,0.17226324,214.12,213.57,0.07646241]
[1693602989278,0.17226324,214.11,213.58,0.86019879]
[1693602989576,0.17226324,214.1,213.58,0.86019879]
[1693602989770,0.17226324,214.09,213.58,0.86019879]
[1693602989971,0.17226324,214.08,213.58,0.86019879]
[1693602990176,0.17226324,214.07,213.58,0.86019879]
[1693602990376,0.17226324,214.06,213.58,0.86019879]
[1693602990576,0.17226324,214.05,213.58,0.86019879]
[1693602990777,0.17226324,214.04,213.58,0.86019879]
[1693602990977,0.17226324,214.03,213.58,0.86019879]
[1693602991178,0.17226324,214.02,213.58,0.86019879]
[1693602991478,0.17226324,214.01,213.58,0.86019879]
[1693602991773,0.17226324,214.0,213.58,0.86019879]
[1693602992077,0.17226324,213.99,213.58,0.86019879]
[1693602992278,0.17226324,213.98,213.58,0.86019879]
[1693602992476,0.17226324,213.97,213.58,0.86019879]
[1693602992677,0.17226324,214.19,213.58,0.86019879]
[1693602992878,0.17226324,214.18,213.58,0.86019879]
[1693602993179,0.17226324,214.17,213.58,0.86019879]
[1693602993378,0.17226324,214.16,213.58,0.9366612]
[1693602993571,0.17226324,214.2,213.59,0.86019879]
[1693602993773,0.17226324,214.19,213.59,0.86019879]
[1693602995081,0.17226324,214.19,213.6,0.86019879]
[1693602995274,5.26263126,214.19,213.58,0.86019879]
[1693602995479,0.17226324,214.18,213.58,0.86019879]
[1693602996681,5.26263126,214.18,213.58,0.9366612]
[1693602996881,0.17226324,214.17,213.59,0.86019879]
[1693602997083,0.17226324,214.17,213.58,0.86019879]
[1693602997283,0.17226324,214.17,213.59,0.86019879]
[1693602997582,0.17226324,214.17,213.6,0.86019879]
[1693602997783,0.17226324,214.17,213.61,0.86019879]
[1693602997986,0.17226324,214.17,213.62,0.86019879]
[1693602998185,0.17226324,214.17,213.57,0.07646241]
[1693602998384,5.26263126,214.17,213.58,0.93664275]
[1693602998580,5.26263126,214.17,213.59,0.86018034]
[1693602998581,0.17226324,214.16,213.59,0.86018034]
[1693602998787,0.17226324,214.16,213.6,0.86018034]
[1693602999086,0.17226324,214.16,213.61,0.86018034]
[1693602999284,0.17226324,214.16,213.58,0.86018034]
[1693602999485,0.17226324,214.16,213.59,0.86018034]
[1693603000086,0.17226324,214.16,213.6,0.86018034]
[1693603000278,0.17226324,214.16,213.58,0.93664275]
[1693603000483,0.17226324,214.16,213.59,0.86018034]
[1693603001183,5.26263126,214.16,213.59,0.86018034]
[1693603001382,0.17226324,214.15,213.58,0.93664275]
[1693603001687,0.17226324,214.15,213.59,0.86018034]
[1693603002284,5.26263126,214.15,213.59,0.93664275]
[1693603002486,0.17226324,214.14,213.6,0.86018034]
[1693603003489,0.17226324,214.14,213.6,0.93664275]
[1693603003692,0.17226324,214.14,213.61,0.86018034]
[1693603004490,5.09036802,214.12,213.61,0.93664275]
[1693603004691,0.17226324,214.11,213.62,0.86018034]
[1693603005287,5.26263126,214.11,213.62,0.93664275]
[1693603005489,0.17226324,214.1,213.62,0.07646241]
[1693603006491,0.17226324,214.1,213.64,0.07646241]
[1693603006692,5.09036802,214.09,213.64,0.07646241]
[1693603006993,0.17226324,214.08,213.63,0.07646241]
[1693603007590,0.17226324,214.08,213.5,3.76514487]
[1693603007591,0.17226324,214.08,213.66,0.07646241]
[1693603008194,5.09036802,214.06,213.66,0.07646241]
[1693603008394,0.17226324,214.05,213.66,0.07646241]
[1693603010900,0.17226324,214.05,213.44,3.76517984]
[1693603011103,0.17226324,214.04,213.66,0.07675655]
[1693603011399,5.09809493,214.06,213.66,0.07675655]
[1693603011400,0.17226324,214.03,213.66,0.07675655]
[1693603011602,0.17226324,214.05,213.66,0.07675655]
[1693603011901,0.17226324,214.04,213.66,0.07675655]
[1693603012501,0.17226324,214.04,213.65,0.07675655]
[1693603013398,5.27035817,214.04,213.64,0.07675655]
[1693603013602,0.17226324,214.03,213.64,0.07675655]
[1693603014903,0.17226324,214.03,213.63,0.07675655]
[1693603015101,0.17226324,214.03,213.64,0.07675655]
[1693603016309,0.17226324,214.03,213.63,0.07675655]
[1693603016707,0.17226324,214.03,213.63,0.07331226]
[1693603018107,5.27035817,214.03,213.63,0.07331226]
[1693603018306,0.17226324,214.02,213.63,0.07331226]
[1693603018905,0.17226324,214.02,213.56,0.15351311]
[1693603019102,0.17226324,214.02,213.57,0.86024182]
[1693603021906,0.17226324,214.02,213.58,0.86024182]
[1693603022108,0.17226324,214.02,213.59,0.86024182]
[1693603022305,0.17226324,214.02,213.56,0.86024182]
[1693603022511,0.17226324,214.02,213.57,0.86024182]
[1693603022713,0.17226324,214.02,213.56,0.86024182]
[1693603023011,0.17226324,214.02,213.57,0.86024182]
[1693603023211,0.17226324,214.02,213.58,0.86024182]
[1693603023411,5.27035817,214.02,213.56,0.86024182]
[1693603023608,0.17226324,214.01,213.57,0.86024182]
[1693603023810,0.17226324,214.01,213.58,0.86024182]
[1693603024007,0.17226324,214.01,213.59,0.86024182]
[1693603024208,0.17226324,214.01,213.56,0.86024182]
[1693603024411,0.17226324,214.01,213.57,0.8602479]
[1693603024611,0.17226324,214.01,213.58,0.8602479]
[1693603024811,0.17226324,214.01,213.56,0.8602479]
[1693603025011,0.17226324,214.01,213.55,0.15351311]
[1693603025012,0.17226324,214.01,213.57,0.8602479]
[1693603025213,0.17226324,214.01,213.58,0.8602479]
[1693603025411,0.17226324,214.01,213.59,0.8602479]
[1693603025610,0.17226324,214.01,213.54,0.15351311]
[1693603025807,0.17226324,214.01,213.55,0.86025693]
[1693603027314,0.17226324,214.01,213.56,0.86025693]
[1693603027613,5.27035817,214.01,213.57,0.86025693]
[1693603027815,0.17226324,214.0,213.54,0.86025693]
[1693603028016,0.17226324,214.0,213.55,0.86025693]
[1693603028212,0.17226324,214.0,213.54,0.86025693]
[1693603028514,0.17226324,214.0,213.36,1.02342078]